[Event "Groningen Festival 2018-B"]
[Site "Groningen"]
[Date "2018.12.23"]
[Round "3"]
[White "Van der Hagen, Loek"]
[Black "Tromp, Pieter"]
[Result "0-1"]
[ECO "B01"]
[WhiteElo "1830"]
[BlackElo "2080"]
[Annotator "NA RC"]
[PlyCount "100"]
[EventDate "2018.12.22"]
[EventType "swiss"]
[EventCountry "NED"]
[SourceTitle "playchess.com"]
[Source "ChessBase"]
[SourceQuality "1"]
[TimeControl "40/5400+30:1800+30"]

{[%evp 25,94,-48,-31,-40,-50,32767,32767,32767,-10,-2,-15,-71,-66,-81,-51,-89,-76,-80,-89,-77,-74,-86,-54,-49,-41,-55,-45,-66,-62,-60,-75,-55,-70,-93,-105,-127,-48,-103,-79,-131,-127,-138,-156,-160,-160,-174,-167,-290,-293,-391,-409,-385,-362,-375,-287,-264,-251,-241,-197,-560,-596,-633,-646,-634,-366,-379,-395,-475,-531,-509,-514]} 1. e4 {[%emt 0:00:00]} d5 {[%emt 0:00:00]} 2. exd5 {[%emt 0:00:00]} Nf6 {[%emt 0:00:03]} 3. Be2 {[%emt 0:00:00]} Nxd5 {[%emt 0:01:02]} 4. d4 {[%emt 0:00:00]} Bf5 {[%emt 0:03:29]} 5. Nf3 {[%emt 0:00:18]} Nb4 {[%emt 0:03:29] B01: Scandinavian Defence} (5... e6 6. h3 Nb4 7. Na3 Be7 8. c3 Nd5 9. Nc4 O-O {½-½ (10) Delgado Ramirez,N (2602)-Matsuura,E (2492) Brasilia 2018}) 6. Na3 {[%emt 0:01:37]} e6 {[%emt 0:02:16]} 7. O-O {[%emt 0:02:03]} Be7 {[%emt 0:01:23]} 8. c3 {[%emt 0:01:20]} Nd5 {[%emt 0:00:23]} 9. Nc4 {[%emt 0:03:24]} O-O $146 {[%emt 0:01:50]} ({Predecessor:} 9... Nc6 10. Nce5 Nxe5 11. Nxe5 c6 12. a3 Qb6 13. Re1 {1-0 (53) Veselovsky,J (2031)-Jurcisin,I (2031) Slovakia 2015}) 10. Ne3 {[%emt 0:06:46]} Nxe3 {[%emt 0:03:10]} 11. fxe3 {[%emt 0:00:29]} c5 {[%emt 0:00:34]} 12. Nd2 {[%emt 0:10:16]} Bg6 {[%emt 0:02:14]} 13. Bf3 {[%emt 0:02:32]} Qc7 {[%emt 0:00:53]} 14. Qe2 {[%emt 0:01:51]} Nd7 {[%emt 0:02:02]} 15. Ne4 {[%emt 0:05:27]} Rab8 {[%emt 0:06:38]} 16. Bd2 {[%emt 0:03:51]} e5 {[%emt 0:08:05]} 17. Be1 {[%emt 0:04:31]} f5 {[%emt 0:10:28]} 18. Nd2 {[%emt 0:07:15]} e4 {[%emt 0:03:07]} 19. Bh5 {[%emt 0:05:22]} Bd6 {[%emt 0:02:16]} 20. h3 {[%emt 0:03:37]} cxd4 {[%emt 0:01:15]} 21. Bxg6 {[%emt 0:02:55]} hxg6 {[%emt 0:04:02]} 22. Qc4+ {[%emt 0:04:08]} Qxc4 {[%emt 0:06:42]} 23. Nxc4 {[%emt 0:00:08]} Bc7 {[%emt 0:01:52]} 24. cxd4 {[%emt 0:01:04]} Rfc8 {[%emt 0:00:24]} 25. Na3 {[%emt 0:04:31]} a6 {[%emt 0:01:32]} 26. Bd2 {[%emt 0:05:02]} Bd6 {[%emt 0:01:06]} 27. Rac1 {[%emt 0:02:16]} Bxa3 {[%emt 0:00:54]} 28. bxa3 {[%emt 0:00:05]} Nb6 {[%emt 0:00:57]} 29. Rxc8+ {[%emt 0:06:45]} Rxc8 {[%emt 0:00:10]} 30. Rc1 {[%emt 0:00:16]} Nc4 {[%emt 0:01:34]} 31. Rc2 {[%emt 0:00:34]} b5 {[%emt 0:00:10]} 32. Bc1 {[%emt 0:00:17]} (32. h4 $142) 32... Kf7 {[%emt 0:00:17]} 33. Kf2 {[%emt 0:00:59]} Ke6 {[%emt 0:00:24]} 34. Ke2 {[%emt 0:02:31]} g5 {[%emt 0:01:33]} 35. Kf2 {[%emt 0:01:30]} Rf8 {[%emt 0:01:01]} 36. Kg3 {[%emt 0:01:44]} (36. a4 $17 {is a better defense.}) 36... Kd5 {[%emt 0:01:06]} 37. Rc3 {[%emt 0:04:20] [#]} f4+ $1 {[%emt 0:01:16]} 38. exf4 {[%emt 0:00:56]} Kxd4 {[%emt 0:00:07]} 39. Rb3 {[%emt 0:03:00]} e3 {[%emt 0:00:46]} 40. Bxe3+ {[%emt 0:01:26]} Nxe3 {[%emt 0:00:15]} 41. fxg5 {[%emt 0:30:40]} Nf1+ {[%emt 0:37:11]} 42. Kh4 $2 {[%emt 0:04:10]} (42. Kg4 {was the crucial defense.}) 42... g6 {[%emt 0:00:49]} 43. Rb4+ {[%emt 0:00:00]} Ke5 {[%emt 0:00:00]} 44. Kg4 {[%emt 0:00:00]} Ne3+ {[%emt 0:00:00]} 45. Kg3 {[%emt 0:00:00]} Rc8 {[%emt 0:00:00]} 46. Kf3 {[%emt 0:00:00]} Nf5 {[%emt 0:00:00]} 47. a4 {[%emt 0:00:00]} Rc4 $19 {[%emt 0:00:00]} 48. Rxc4 {[%emt 0:00:00]} bxc4 {[%emt 0:00:00]} 49. g4 {[%emt 0:00:00]} c3 {[%emt 0:00:00]} 50. Ke2 {[%emt 0:00:00]} Nd4+ {[%emt 0:00:00]} 0-1

[Event "Groningen Festival 2018-B"]
[Site "Groningen"]
[Date "2018.12.23"]
[Round "3"]
[White "Achuthan, Dylan"]
[Black "Wissmann, Dolf"]
[Result "0-1"]
[ECO "B12"]
[WhiteElo "1759"]
[BlackElo "2049"]
[Annotator "NA RC"]
[PlyCount "66"]
[EventDate "2018.12.22"]
[EventType "swiss"]
[EventCountry "NED"]
[SourceTitle "playchess.com"]
[Source "ChessBase"]
[SourceQuality "1"]
[TimeControl "40/5400+30:1800+30"]

{[%evp 21,62,27,66,32767,32767,32767,0,-27,-12,-21,-16,-24,-8,-29,-25,-10,-24,-269,-29,-196,-232,-277,-239,-607,-619,-29989,-491,-471,-83,-69,-69,-118,-111,-145,-170,-572,-640,-643,-589,-909,-1263,-1271,-707]} 1. Nf3 {[%emt 0:00:00]} d6 {[%emt 0:00:05]} 2. e4 {[%emt 0:01:04]} c6 {[%emt 0:00:46]} 3. d4 {[%emt 0:00:17]} Nd7 {[%emt 0:00:12]} 4. Nc3 {[%emt 0:02:23]} h6 {[%emt 0:01:25]} 5. Bd3 {[%emt 0:02:19]} e5 {[%emt 0:01:59]} 6. O-O {[%emt 0:02:24]} Be7 {[%emt 0:03:55]} 7. Ne2 {[%emt 0:05:30]} Qc7 {[%emt 0:02:02]} 8. Ng3 {[%emt 0:01:13]} g6 {[%emt 0:03:33]} 9. b3 {[%emt 0:06:09]} Bf6 {[%emt 0:05:57]} 10. Bb2 {[%emt 0:01:51]} Ne7 {[%emt 0:01:33]} 11. c4 {[%emt 0:03:25]} h5 {[%emt 0:02:58]} 12. h4 {[%emt 0:14:28]} Nf8 {[%emt 0:01:55]} 13. dxe5 {[%emt 0:07:47]} dxe5 {[%emt 0:01:36]} 14. Ng5 {[%emt 0:06:51]} Bxg5 {[%emt 0:03:26]} 15. hxg5 {[%emt 0:00:41]} h4 $1 {[%emt 0:00:25]} 16. Ne2 {[%emt 0:00:28]} h3 {[%emt 0:04:42]} 17. g3 $1 {[%emt 0:02:03]} h2+ $1 {[%emt 0:00:27]} 18. Kh1 {[%emt 0:00:23]} Bh3 $1 {[%emt 0:00:20]} 19. Re1 $2 {[%emt 0:05:35]} (19. f4 $11 {and White has nothing to worry.} Bxf1 20. Qxf1) 19... O-O-O $2 {[%emt 0:07:44]} (19... Bg4 $19 {[%cal Rg4f3]} 20. Kg2 O-O-O) 20. Qc2 $2 {[%emt 0:07:47]} (20. Nc3 $1 $15) 20... Bg4 {[%emt 0:04:37]} 21. Kg2 {[%emt 0:01:04]} Ne6 {[%emt 0:02:25]} 22. f4 $2 {[%emt 0:07:16]} (22. f3 Bh3+ 23. Kh1) 22... exf4 {[%emt 0:08:11]} 23. gxf4 {[%emt 0:05:02]} Bxe2 {[%emt 0:02:44]} (23... Nxf4+ $142 24. Nxf4 Qxf4 25. Be2 Rd2 26. Qxd2 Bh3+ 27. Kh1 Qxe4+ 28. Bf3 Qxf3+ 29. Kxh2 Rh5 30. Kg1 Qg3+ {[%mdl 64] Double Attack} 31. Kh1 Bg4+ 32. Qh2 Rxh2#) 24. Bxe2 {[%emt 0:00:29]} Nxf4+ $2 {[%emt 0:02:20]} (24... Qxf4 $19 25. Bxh8 h1=R 26. Rxh1 Rd2 27. Qxd2 Qxd2) 25. Kh1 {[%emt 0:00:27]} Rh4 {[%emt 0:08:20]} 26. Rad1 {[%emt 0:06:08]} Rxd1 {[%emt 0:02:09]} 27. Rxd1 {[%emt 0:00:51]} Nh3 {[%emt 0:00:59]} 28. Rf1 $2 {[%emt 0:04:48]} (28. Bf1 {was the crucial defense.} Qf4 29. Bxh3+ Rxh3 30. Re1) 28... Qg3 {[%emt 0:02:11]} 29. Qd1 {[%emt 0:00:43]} Rxe4 {[%emt 0:07:51]} 30. Bd4 {[%emt 0:04:08]} Nf5 {[%emt 0:01:02]} 31. Bf6 {[%emt 0:01:21]} Qg1+ $19 {[%emt 0:04:05]} (31... Re8 $142 32. Bg4 Nf2+ 33. Rxf2 Qxf2 34. Bxf5+ gxf5) 32. Rxg1 {[%emt 0:00:10]} hxg1=Q+ {[%emt 0:00:06]} 33. Qxg1 {[%emt 0:00:11]} Nxg1 {[%emt 0:00:08]} 0-1

[Event "Groningen Festival 2018-B"]
[Site "Groningen"]
[Date "2018.12.24"]
[Round "4"]
[White "Tromp, Pieter"]
[Black "Waardenburg, Feline"]
[Result "1-0"]
[ECO "B11"]
[WhiteElo "2080"]
[BlackElo "1763"]
[Annotator "NA RC"]
[PlyCount "71"]
[EventDate "2018.12.22"]
[EventType "swiss"]
[EventCountry "NED"]
[SourceTitle "playchess.com"]
[Source "ChessBase"]
[SourceQuality "1"]
[TimeControl "40/5400+30:1800+30"]

{[%evp 8,66,51,53,86,106,89,69,32767,72,66,55,77,76,56,64,62,70,70,56,31,18,92,91,116,73,186,200,298,109,125,133,117,149,146,112,187,32767,32767,32767,32767,32767,354,340,350,32767,32767,479,32767,737,668,793,1043,1144,1872,32767,1037,32767,32767,32767,29966]} 1. e4 {[%emt 0:00:00]} c6 {[%emt 0:00:00]} 2. Nc3 {[%emt 0:00:10]} d5 {[%emt 0:00:22]} 3. Nf3 {[%emt 0:00:51]} dxe4 {[%emt 0:01:04]} 4. Nxe4 {[%emt 0:00:28]} Bf5 {[%emt 0:00:56]} 5. Ng3 {[%emt 0:00:30]} Bg6 {[%emt 0:00:24] [#]} 6. h4 $1 {[%emt 0:00:34]} h6 {[%emt 0:00:40]} 7. Ne5 $1 {[%emt 0:00:23]} Qd6 {[%emt 0:07:13]} 8. d4 {[%emt 0:00:46]} Nd7 {[%emt 0:03:36] B11: Caro-Kann: Two Knights Variation} 9. Nxg6 {[%emt 0:00:33]} Qxg6 {[%emt 0:00:36]} 10. Bd3 {[%emt 0:02:56] LiveBook: 3 Games} Qd6 {[%emt 0:02:27]} 11. c3 {[%emt 0:02:58]} O-O-O {[%emt 0:04:41]} 12. Qf3 $146 {[%emt 0:04:25]} ({Predecessor:} 12. Qa4 c5 13. Qxa7 cxd4 14. Qxd4 Qxd4 15. cxd4 {1-0 (32) Grandelius,N (2525)-Ljung,D (1878) Norrkoeping 2009}) 12... Ngf6 {[%emt 0:06:09]} 13. Bd2 {[%emt 0:27:01]} e5 {[%emt 0:05:57]} 14. O-O {[%emt 0:06:37]} Qc7 {[%emt 0:12:09]} (14... Qd5 $11 {remains equal.}) 15. Rfe1 {[%emt 0:04:51]} Kb8 {[%emt 0:07:09]} 16. Rad1 {[%emt 0:17:59]} Bd6 {[%emt 0:03:01]} (16... exd4 $16 17. Nf5 (17. cxd4 Nb6 $14) 17... g5) 17. Nf5 {[%emt 0:01:05]} g5 {[%emt 0:14:16]} (17... Nd5 $142 18. Nxg7 exd4) 18. Bc2 $2 {[%emt 0:05:44]} ({Don't take} 18. hxg5 hxg5 19. Bxg5 e4 $18) (18. Nxd6 $18 {and White stays clearly on top.} Qxd6 19. hxg5 hxg5 20. Bxg5) 18... exd4 {[%emt 0:03:32]} 19. cxd4 {[%emt 0:01:35]} g4 {[%emt 0:03:05]} 20. Qb3 {[%emt 0:01:13]} Nd5 {[%emt 0:02:10]} 21. g3 {[%emt 0:00:40]} N7f6 {[%emt 0:00:52]} (21... h5 $16 {is a better defense.}) 22. Bxh6 {[%emt 0:01:09]} Nh5 {[%emt 0:00:44]} 23. Bg5 {[%emt 0:01:28]} Rdg8 {[%emt 0:00:50]} 24. Be4 {[%emt 0:01:00]} f6 {[%emt 0:04:33]} 25. Bxd5 {[%emt 0:01:40]} cxd5 {[%emt 0:00:06]} 26. Bd2 {[%emt 0:00:55]} Rd8 {[%emt 0:06:25]} 27. Re6 {[%emt 0:04:56]} Ka8 {[%emt 0:02:38]} 28. Rc1 {[%emt 0:01:07]} Qb8 {[%emt 0:00:03]} 29. Ba5 {[%emt 0:00:52]} Rc8 {[%emt 0:01:08]} 30. Rxc8 {[%emt 0:01:42]} Qxc8 {[%emt 0:01:50]} 31. Nxd6 {[%emt 0:00:11]} Qd7 $18 {[%emt 0:00:25]} 32. Qxd5 {[%emt 0:01:50]} f5 {[%emt 0:00:25]} 33. Qe5 {[%emt 0:00:44]} Ng7 {[%emt 0:01:01]} 34. Re7 {[%emt 0:01:02]} Qa4 {[%emt 0:01:26]} 35. Qxg7 {[%emt 0:01:07]} Qd1+ {[%emt 0:00:15]} 36. Re1 {[%emt 0:00:08]} 1-0

[Event "Groningen Festival 2018-B"]
[Site "Groningen"]
[Date "2018.12.24"]
[Round "4"]
[White "Wissmann, Dolf"]
[Black "Labruyere, Roger"]
[Result "1-0"]
[ECO "B25"]
[WhiteElo "2049"]
[BlackElo "1760"]
[Annotator "NA RC"]
[PlyCount "129"]
[EventDate "2018.12.22"]
[EventType "swiss"]
[EventCountry "NED"]
[SourceTitle "playchess.com"]
[Source "ChessBase"]
[SourceQuality "1"]
[TimeControl "40/5400+30:1800+30"]

{[%evp 8,116,8,11,11,-22,5,-12,0,-7,-2,32767,13,14,34,39,40,-33,39,-71,46,0,72,-2,25,51,122,133,200,152,121,120,128,45,39,50,58,31,92,80,112,56,107,73,65,76,128,21,200,197,606,662,626,647,1516,1670,6099,29985,29985,29985,29981,1080,2575,1310,1281,1347,32767,32767,32767,508,1000,32767,1009,32767,4133,32767,32767,747,32767,855,628,32767,32767,32767,32767,607,29989,29991,29991,29977,1402,29968,29984,29985,29985,29986,6031,29987,29987,29978,29957,29976,29966,32767,29977,29976,140,29982,32767,29987,29987]} 1. e4 {[%emt 0:00:00]} c5 {[%emt 0:00:00]} 2. Nc3 {[%emt 0:00:07]} d6 {[%emt 0:00:00]} 3. d3 {[%emt 0:01:03]} Nc6 {[%emt 0:00:01]} 4. g3 {[%emt 0:00:28]} g6 {[%emt 0:00:12]} 5. Bg2 {[%emt 0:00:08]} Bg7 {[%emt 0:00:05]} 6. Nh3 {[%emt 0:00:16]} Nf6 {[%emt 0:03:20]} 7. O-O {[%emt 0:00:56]} Bg4 {[%emt 0:03:18] B25: Closed Sicilian: 3 g3, lines without early Be3} (7... O-O 8. f4 Nd4 9. Nf2 Rb8 10. Nb1 e5 11. c3 Nc6 12. f5 gxf5 13. exf5 Bxf5 14. Ne4 Bxe4 15. dxe4 Ne7 16. Bg5 {1-0 (35) Granda Zuniga,J (2688)-Perez Mitjans,O (2442) La Roda 2016}) 8. f3 {[%emt 0:00:21] LiveBook: 5 Games} Bd7 {[%emt 0:00:35]} 9. Ne2 $146 {[%emt 0:02:26]} ({Predecessor:} 9. f4 h5 10. Ne2 Qb6 11. Ng5 c4+ 12. d4 e5 13. c3 exd4 14. Nxd4 Ng4 15. Ngf3 {0-1 (46) Piersig,K (2343)-Bock,S (2518) ICCF email 2012}) 9... Qc8 {[%emt 0:02:54]} 10. Nf2 {[%emt 0:00:35]} h5 {[%emt 0:00:37]} 11. c3 {[%emt 0:01:15]} e5 {[%emt 0:09:20]} 12. f4 {[%emt 0:02:38]} (12. Be3 $14) 12... Ng4 {[%emt 0:05:03]} ({Black should try} 12... h4 $1 $15) 13. Qc2 {[%emt 0:06:21]} (13. Nxg4 $14 {keeps the upper hand.} Bxg4 {[#]} 14. f5 $1 {[%mdl 512]}) 13... b5 {[%emt 0:03:59]} (13... Nxf2 $11 14. Rxf2 h4) 14. f5 {[%emt 0:01:57]} gxf5 {[%emt 0:04:53]} 15. d4 {[%emt 0:01:34]} ({White should try} 15. exf5 $14 Nxf2 16. Rxf2) 15... exd4 {[%emt 0:10:20]} 16. exf5 {[%emt 0:02:28]} Nxf2 {[%emt 0:15:07]} (16... Nce5 $11) 17. Rxf2 {[%emt 0:04:01]} dxc3 {[%emt 0:03:22]} (17... Be5 $16 {was worth a try.}) 18. f6 {[%emt 0:07:19]} ({Worse is} 18. bxc3 Be5 $11) 18... Bf8 {[%emt 0:08:22]} 19. Qe4+ {[%emt 0:01:34]} ({Stronger than} 19. bxc3 Ne5 $14) ({Resist} 19. Qxc3 $6 b4 $14) 19... Kd8 {[%emt 0:00:12]} 20. bxc3 {[%emt 0:01:15]} (20. Nxc3 $16 Rb8 21. Bf4) 20... Rb8 {[%emt 0:03:48]} 21. Bf4 {[%emt 0:00:23]} Rb6 {[%emt 0:01:58]} 22. a4 {[%emt 0:04:05]} b4 {[%emt 0:03:47] [#]} (22... Bf5 $11 {keeps the balance.} 23. Qd5 Be6) 23. a5 $1 {[%emt 0:01:04]} Ra6 {[%emt 0:00:34]} 24. cxb4 {[%emt 0:02:20]} Nxb4 {[%emt 0:00:36]} 25. Nc3 {[%emt 0:06:44]} Bc6 {[%emt 0:02:02]} 26. Qc4 {[%emt 0:04:39]} Bxg2 {[%emt 0:01:10]} 27. Kxg2 {[%emt 0:01:35]} Qb7+ {[%emt 0:01:26] [#]} (27... Qe6 $16 28. Qb5 Qd7) 28. Kg1 $1 {[%emt 0:00:15]} Bh6 $2 {[%emt 0:06:34]} (28... h4) 29. Bxh6 {[%emt 0:01:28]} Rxh6 {[%emt 0:00:03]} 30. Re1 {[%emt 0:00:48]} Rh8 {[%emt 0:03:31]} 31. Re7 {[%emt 0:01:26]} Qc6 {[%emt 0:00:27]} 32. Qxf7 {[%emt 0:01:49]} Rxa5 {[%emt 0:00:22]} 33. Rf1 {[%emt 0:01:38]} c4 {[%emt 0:01:07]} 34. Rb7 {[%emt 0:05:30]} (34. Qg7 $142 Qc5+ 35. Kg2 Qc6+ 36. Ne4 Re8 {[#]} 37. f7 $1 {[%mdl 512]} Ra2+ 38. Kg1 Rxe7 39. f8=Q+ {[%mdl 64] Double Attack, Discovered Attack} Kc7 40. Qgxe7+ Kb6 41. Qb8+ {[%mdl 64] Double Attack} Ka5 42. Qexa7+ Qa6 43. Rb1) 34... Qc5+ {[%emt 0:00:52]} 35. Kg2 {[%emt 0:00:11]} Qc6+ {[%emt 0:00:04]} 36. Rf3 {[%emt 0:00:17]} Na6 {[%emt 0:02:42]} 37. Qe7+ {[%emt 0:00:57]} Kc8 {[%emt 0:00:13]} 38. Rxa7 {[%emt 0:04:42]} (38. Ne4 $142 Nc7 39. Nxd6+ Qxd6 40. Qxd6 Kxb7 41. f7) 38... Re8 {[%emt 0:00:36]} (38... Re5 $142) 39. Ra8+ {[%emt 0:00:41]} Nb8 {[%emt 0:00:55]} 40. Rxa5 {[%emt 0:00:51]} Rxe7 {[%emt 0:00:24]} 41. fxe7 {[%emt 0:30:02]} Kd7 {[%emt 0:30:39]} 42. Ra7+ {[%emt 0:00:03]} (42. Nd5 $142 Na6 43. Rf8 Qxd5+ 44. Rxd5) 42... Ke8 {[%emt 0:00:10] [#]} 43. Nb5 $1 {[%emt 0:01:37] Back Rank} Nd7 {[%emt 0:02:10]} 44. Nd4 {[%emt 0:06:21]} Qb6 {[%emt 0:03:26]} 45. Nf5 {[%emt 0:01:46]} Qc6 {[%emt 0:00:00] [#]} 46. Kf2 $1 {[%emt 0:00:00]} Qb6+ {[%emt 0:00:00]} 47. Re3 {[%emt 0:00:00]} Qb2+ {[%emt 0:00:00]} 48. Kf3 {[%emt 0:00:00]} Ne5+ {[%emt 0:00:00] [#]} 49. Rxe5 $1 {[%emt 0:00:00]} Qb3+ {[%emt 0:00:00]} 50. Re3 {[%emt 0:00:00]} Qd1+ {[%emt 0:00:00]} 51. Re2 {[%emt 0:00:00]} Qf1+ {[%emt 0:00:00]} 52. Rf2 {[%emt 0:00:00]} Qh1+ {[%emt 0:00:00]} 53. Ke2 {[%emt 0:00:00]} Qe4+ {[%emt 0:00:00]} 54. Kd2 {[%emt 0:00:00]} Qd3+ $2 {[%emt 0:00:00]} (54... c3+ $11 55. Kxc3 Qe5+ 56. Kc2 Qc5+ 57. Kd1 Qd5+ 58. Ke1 Qe4+ 59. Kf1 Qh1+ 60. Ke2 Qe4+ 61. Ne3 Qxe7 62. Rxe7+ Kxe7) 55. Kc1 {[%emt 0:00:00]} Qc3+ {[%emt 0:00:00] [#]} 56. Rc2 $1 {[%emt 0:00:00]} Qe1+ {[%emt 0:00:00]} 57. Kb2 {[%emt 0:00:00]} Qe5+ {[%emt 0:00:00]} 58. Ka2 {[%emt 0:00:00]} Qxf5 {[%emt 0:00:00]} 59. Rb2 {[%emt 0:00:00]} Qc8 {[%emt 0:00:00]} 60. Rf2 {[%emt 0:00:00]} Qd7 {[%emt 0:00:00]} 61. Rxd7 {[%emt 0:00:00]} Kxd7 {[%emt 0:00:00]} 62. Re2 {[%emt 0:00:00]} Ke8 {[%emt 0:00:00]} 63. Kb2 {[%emt 0:00:00]} d5 {[%emt 0:00:00]} 64. Kc3 {[%emt 0:00:00]} h4 {[%emt 0:00:00]} 65. gxh4 {[%emt 0:00:00]} 1-0

[Event "Groningen Festival 2018-B"]
[Site "Groningen"]
[Date "2018.12.24"]
[Round "4"]
[White "Van Hamond, Fons"]
[Black "De Jong, Mathijs"]
[Result "1-0"]
[ECO "B12"]
[WhiteElo "2001"]
[BlackElo "1967"]
[Annotator "NA RC"]
[PlyCount "75"]
[EventDate "2018.12.22"]
[EventType "swiss"]
[EventCountry "NED"]
[SourceTitle "playchess.com"]
[Source "ChessBase"]
[SourceQuality "1"]
[TimeControl "40/5400+30:1800+30"]

{[%evp 8,50,9,-1,27,0,15,-36,-2,-4,-17,0,0,-60,-62,-143,-45,-53,-44,-75,-101,-80,-83,-72,-66,-97,-74,-95,-106,-79,-76,-103,-127,-127,0,0,0,-162,-149,-172,-112,-127,-41,-106,-119]} 1. e4 {[%emt 0:00:07]} c6 {[%emt 0:00:00]} 2. d4 {[%emt 0:00:26]} d5 {[%emt 0:00:00]} 3. e5 {[%emt 0:00:13]} c5 {[%emt 0:00:27]} 4. c3 {[%emt 0:02:44]} Nc6 {[%emt 0:01:09]} 5. Ne2 {[%emt 0:04:54]} Bg4 {[%emt 0:08:05] B12: Caro-Kann: Advance Variation} 6. f3 {[%emt 0:03:50] LiveBook: 5 Games} (6. h3 Bxe2 7. Bxe2 e6 8. O-O Qb6 9. dxc5 Bxc5 10. b4 Be7 11. Be3 Qc7 12. f4 Nh6 13. Na3 {½-½ (44) Vachier Lagrave,M (2795)-Anand,V (2786) Stavanger 2017}) 6... Bf5 {[%emt 0:00:34]} 7. Ng3 {[%emt 0:05:44]} Bxb1 {[%emt 0:01:51]} 8. Rxb1 {[%emt 0:00:12]} cxd4 $146 {[%emt 0:00:18]} ({Predecessor:} 8... e6 9. Be3 Qc7 10. Bd3 c4 11. Bc2 f5 12. f4 Be7 13. Nxf5 exf5 14. Bxf5 {1-0 (37) Planas Torrea,A (1920)-Sanmiguel Mateo,L (1958) Aragon 2012}) 9. cxd4 {[%emt 0:00:13]} e6 {[%emt 0:01:59]} 10. a3 {[%emt 0:08:17]} (10. Be3 $11) 10... Qb6 {[%emt 0:02:52]} 11. Ne2 {[%emt 0:03:07] [#]} ({Better is} 11. b4 $15) 11... Nge7 {[%emt 0:02:54]} (11... Bxa3 $1 $17 {[%mdl 512]} 12. Be3 (12. bxa3 Qxb1) 12... Bb4+ 13. Kf2 Nge7) 12. g4 {[%emt 0:06:17]} h5 {[%emt 0:09:37]} 13. Bg2 {[%emt 0:04:23]} hxg4 {[%emt 0:05:03]} 14. fxg4 {[%emt 0:02:51] [#]} Ng6 $1 {[%emt 0:01:30]} 15. Bg5 {[%emt 0:01:19]} Nh4 {[%emt 0:04:24]} 16. Bxh4 {[%emt 0:00:43]} Rxh4 {[%emt 0:00:07]} 17. h3 {[%emt 0:01:53]} Be7 {[%emt 0:02:09]} 18. Qd3 {[%emt 0:05:40]} Rh8 {[%emt 0:13:53]} 19. b4 {[%emt 0:01:19]} Bh4+ {[%emt 0:03:40]} 20. Kd1 $1 $11 {[%emt 0:00:10] and White is okay.} Bf2 {[%emt 0:01:10]} (20... O-O-O $17) 21. Rf1 {[%emt 0:03:55]} Bh4 {[%emt 0:09:33]} 22. b5 $2 {[%emt 0:05:05] [#]} Na5 $1 {[%emt 0:02:11]} 23. Nc3 {[%emt 0:00:52]} (23. Ng1 $17) 23... Qd8 {[%emt 0:05:28]} 24. b6 {[%emt 0:12:13]} Nc4 {[%emt 0:02:28]} 25. Nb5 $17 {[%emt 0:06:57]} ({But not} 25. Qf3 Qd7 $19) (25. bxa7 $1 $11 Rxa7 26. Nb5) 25... axb6 {[%emt 0:01:08]} 26. Rb4 {[%emt 0:02:18]} Ra5 {[%emt 0:05:30]} 27. Qf3 {[%emt 0:03:03]} Rf8 {[%emt 0:01:22]} 28. a4 {[%emt 0:02:11]} Rxb5 {[%emt 0:04:17]} 29. Rxb5 {[%emt 0:00:54]} Qa8 {[%emt 0:00:41]} 30. Qb3 {[%emt 0:03:12]} Bg5 {[%emt 0:00:48]} 31. Rf2 {[%emt 0:01:37]} Be3 {[%emt 0:03:28]} 32. Re2 {[%emt 0:00:06]} Bxd4 {[%emt 0:00:50]} 33. Bxd5 {[%emt 0:00:22]} exd5 {[%emt 0:02:26]} 34. Rxd5 {[%emt 0:00:02]} Qa6 {[%emt 0:03:34]} 35. Rxd4 {[%emt 0:00:31]} b5 {[%emt 0:00:18]} 36. Qxb5+ {[%emt 0:01:27]} Qxb5 {[%emt 0:00:05]} 37. axb5 {[%emt 0:00:07]} Nb6 {[%emt 0:00:29]} 38. e6 {[%emt 0:09:46]} 1-0